[Event "Kupreichik Memorial Open 2018"]
[Site "Minsk"]
[Date "2018.06.21"]
[Round "4"]
[White "Masjuk, Vladimir"]
[Black "Sirotkina, Nina"]
[Result "0-1"]
[ECO "B01"]
[WhiteElo "1829"]
[BlackElo "2116"]
[Annotator "NA"]
[PlyCount "152"]
[EventDate "2018.06.21"]
[EventCountry "BLR"]
[SourceTitle "playchess.com"]
[Source "ChessBase"]
[SourceQuality "1"]
[TimeControl "900+10"]

1. e4 {[%emt 0:00:00]} d5 {[%emt 0:00:13]} 2. exd5 {[%emt 0:00:00]} Qxd5 {[%emt 0:00:02]} 3. Nc3 {[%emt 0:00:00]} Qd6 {[%emt 0:00:03]} 4. d4 {[%emt 0:00:02]} Nf6 {[%emt 0:00:36]} 5. Nf3 {[%emt 0:00:06]} Bg4 {[%emt 0:00:16]} 6. Be2 {[%emt 0:00:03]} c6 {[%emt 0:00:21]} 7. O-O {[%emt 0:00:31]} e6 {[%emt 0:00:37]} 8. Bg5 {[%emt 0:01:33]} Nbd7 {[%emt 0:01:04]} 9. Bh4 {[%emt 0:00:14]} Qc7 {[%emt 0:00:58]} 10. Bg3 {[%emt 0:00:53]} Bd6 {[%emt 0:00:41]} 11. Ne5 {[%emt 0:01:12]} Bf5 {[%emt 0:02:22]} 12. Re1 {[%emt 0:02:03]} O-O {[%emt 0:00:44]} 13. Bf3 {[%emt 0:00:23]} Rad8 {[%emt 0:00:56]} 14. Qe2 {[%emt 0:00:59]} Bxe5 {[%emt 0:01:46]} 15. dxe5 {[%emt 0:00:05]} Nd5 {[%emt 0:00:05]} 16. Nxd5 {[%emt 0:00:10]} cxd5 {[%emt 0:00:19]} 17. c3 {[%emt 0:00:04]} Nb6 {[%emt 0:00:15]} 18. Qb5 {[%emt 0:00:54]} Qc4 {[%emt 0:00:48]} 19. Qb3 {[%emt 0:01:10]} Rc8 {[%emt 0:01:08]} 20. Be2 {[%emt 0:00:16]} Qc5 {[%emt 0:00:22]} 21. Rad1 {[%emt 0:00:37]} Nc4 {[%emt 0:00:27]} 22. Rd4 {[%emt 0:00:41]} b5 {[%emt 0:00:40]} 23. a3 {[%emt 0:01:16]} a5 {[%emt 0:00:31]} 24. h3 {[%emt 0:02:41]} a4 {[%emt 0:00:15]} 25. Qa2 {[%emt 0:00:05]} Rb8 {[%emt 0:00:29]} 26. Qa1 {[%emt 0:00:06]} Na5 {[%emt 0:00:53]} 27. Qd1 {[%emt 0:00:26]} Nc4 {[%emt 0:00:17]} 28. Qc1 {[%emt 0:00:10]} Na5 {[%emt 0:00:07]} 29. Rh4 {[%emt 0:00:17]} Bg6 {[%emt 0:00:35]} 30. Bh5 {[%emt 0:00:38]} Nb3 {[%emt 0:00:39]} 31. Qg5 {[%emt 0:00:11]} Rfd8 {[%emt 0:00:32]} 32. Bxg6 {[%emt 0:00:33]} hxg6 {[%emt 0:00:11]} 33. Qe3 {[%emt 0:01:04]} d4 {[%emt 0:00:27]} 34. cxd4 {[%emt 0:00:04]} Nxd4 {[%emt 0:00:08]} 35. Kh2 {[%emt 0:00:11]} Qd5 {[%emt 0:00:17]} 36. Rc1 {[%emt 0:00:14]} Nf5 {[%emt 0:00:05]} 37. Qe1 {[%emt 0:00:18]} Nxh4 {[%emt 0:00:02]} 38. Bxh4 {[%emt 0:00:01]} Rdc8 {[%emt 0:00:07]} 39. Rd1 {[%emt 0:00:02]} Qc4 {[%emt 0:00:13]} 40. Bg3 {[%emt 0:00:23]} Rd8 {[%emt 0:00:11]} 41. Rc1 {[%emt 0:00:01]} Qd3 {[%emt 0:00:07]} 42. Bh4 {[%emt 0:00:11]} Rd5 {[%emt 0:00:04]} 43. Rc7 {[%emt 0:00:17]} Qd4 {[%emt 0:00:20]} 44. Bg3 {[%emt 0:00:05]} Rd7 {[%emt 0:00:07]} 45. Rc3 {[%emt 0:00:06]} Qd2 {[%emt 0:00:09]} 46. Qb1 {[%emt 0:00:03]} Rbd8 {[%emt 0:00:14]} 47. Rc5 {[%emt 0:00:11]} Rd5 {[%emt 0:00:10]} 48. Rc7 {[%emt 0:00:07]} Qe2 {[%emt 0:00:09]} 49. Qc1 {[%emt 0:00:06]} Rd1 {[%emt 0:00:09]} 50. Qf4 {[%emt 0:00:03]} R1d7 {[%emt 0:00:20]} 51. Qg5 {[%emt 0:00:16]} Qd2 {[%emt 0:00:20]} 52. Qxd2 {[%emt 0:00:31]} Rxd2 {[%emt 0:00:01]} 53. Bh4 {[%emt 0:00:04]} Rb8 {[%emt 0:00:08]} 54. f4 {[%emt 0:00:18]} Rxb2 {[%emt 0:00:02]} 55. Be7 {[%emt 0:00:01]} Rb3 {[%emt 0:00:13]} 56. Ra7 {[%emt 0:00:15]} Rc8 {[%emt 0:00:04]} 57. h4 {[%emt 0:00:05]} Rc2 {[%emt 0:00:15]} 58. Ra8+ {[%emt 0:00:25]} Kh7 {[%emt 0:00:01]} 59. Rf8 {[%emt 0:00:01]} Rbb2 {[%emt 0:00:17]} 60. Rxf7 {[%emt 0:00:16]} Rxg2+ {[%emt 0:00:03]} 61. Kh3 {[%emt 0:00:00]} Rh2+ {[%emt 0:00:47]} 62. Kg3 {[%emt 0:00:11]} Rbg2+ {[%emt 0:00:02]} 63. Kf3 {[%emt 0:00:01]} Ra2 {[%emt 0:00:14]} 64. Bf6 {[%emt 0:00:33]} Rxa3+ {[%emt 0:00:03]} 65. Ke4 {[%emt 0:00:06]} Re2+ {[%emt 0:00:31]} 66. Kd4 {[%emt 0:00:02]} Rf3 {[%emt 0:00:05]} 67. Rxg7+ {[%emt 0:00:05]} Kh6 {[%emt 0:00:04]} 68. Rg8 {[%emt 0:00:25]} Kh5 {[%emt 0:00:07]} 69. Bg5 {[%emt 0:00:08]} a3 {[%emt 0:00:08]} 70. f5 {[%emt 0:00:33]} exf5 {[%emt 0:00:07]} 71. Rh8+ {[%emt 0:00:07]} Kg4 {[%emt 0:00:02]} 72. Ra8 {[%emt 0:00:02]} b4 {[%emt 0:00:11]} 73. Kd5 {[%emt 0:00:01]} Rd3+ {[%emt 0:00:04]} 74. Kc4 {[%emt 0:00:10]} Rd1 {[%emt 0:00:03]} 75. Kxb4 {[%emt 0:00:04]} a2 {[%emt 0:00:01]} 76. e6 {[%emt 0:00:11]} a1=Q {[%emt 0:00:04]} 0-1

[Event "Kupreichik Memorial Open 2018"]
[Site "Minsk"]
[Date "2018.06.21"]
[Round "4"]
[White "Rybakova, Polina"]
[Black "Kashtelyan, Valentin"]
[Result "1-0"]
[ECO "B30"]
[WhiteElo "1826"]
[BlackElo "1604"]
[Annotator "NA"]
[PlyCount "95"]
[EventDate "2018.06.21"]
[EventCountry "BLR"]
[SourceTitle "playchess.com"]
[Source "ChessBase"]
[SourceQuality "1"]
[TimeControl "900+10"]

1. e4 {[%emt 0:00:00]} c5 {[%emt 0:00:05]} 2. Nf3 {[%emt 0:00:00]} Nc6 {[%emt 0:00:02]} 3. Bb5 {[%emt 0:00:00]} Qc7 {[%emt 0:00:12]} 4. O-O {[%emt 0:00:12]} e6 {[%emt 0:00:01]} 5. Nc3 {[%emt 0:00:20]} Nge7 {[%emt 0:00:06]} 6. d4 {[%emt 0:00:16]} cxd4 {[%emt 0:00:04]} 7. Nxd4 {[%emt 0:00:04]} a6 {[%emt 0:00:10]} 8. Be2 {[%emt 0:00:57]} Ng6 {[%emt 0:00:11]} 9. Kh1 {[%emt 0:00:32]} Be7 {[%emt 0:00:08]} 10. Nxc6 {[%emt 0:00:37]} bxc6 {[%emt 0:00:12]} 11. f4 {[%emt 0:00:04]} d5 {[%emt 0:01:15]} 12. f5 {[%emt 0:00:42]} Ne5 {[%emt 0:00:17]} 13. Bf4 {[%emt 0:00:56]} O-O {[%emt 0:00:54]} 14. Bg3 {[%emt 0:00:46]} f6 {[%emt 0:00:43]} 15. fxe6 {[%emt 0:01:39]} Bxe6 {[%emt 0:00:14]} 16. exd5 {[%emt 0:00:11]} Rfd8 {[%emt 0:00:37]} 17. Bf3 {[%emt 0:01:39]} Qa5 {[%emt 0:01:44]} 18. Bxe5 {[%emt 0:00:39]} fxe5 {[%emt 0:00:08]} 19. Qe2 {[%emt 0:00:22]} Bxd5 {[%emt 0:00:38]} 20. Nxd5 {[%emt 0:02:25]} cxd5 {[%emt 0:00:42]} 21. Qxe5 {[%emt 0:00:03]} Bf6 {[%emt 0:00:13]} 22. Qe6+ {[%emt 0:00:12]} Kh8 {[%emt 0:00:08]} 23. c3 {[%emt 0:00:12]} Rab8 {[%emt 0:00:14]} 24. Rad1 {[%emt 0:00:13]} Rb6 {[%emt 0:01:21]} 25. Qe2 {[%emt 0:00:59]} h6 {[%emt 0:00:24]} 26. Bxd5 {[%emt 0:01:20]} Rbd6 {[%emt 0:00:50]} 27. Bb3 {[%emt 0:01:49]} Qe5 {[%emt 0:02:03]} 28. Qxe5 {[%emt 0:01:30]} Bxe5 {[%emt 0:00:04]} 29. Rfe1 Bf4 {[%emt 0:01:13]} 30. g3 {[%emt 0:00:57]} Rxd1 {[%emt 0:00:22]} 31. Rxd1 {[%emt 0:00:01]} Rxd1+ {[%emt 0:00:02]} 32. Bxd1 {[%emt 0:00:01]} Bd2 {[%emt 0:00:11]} 33. Kg2 {[%emt 0:00:19]} Kg8 {[%emt 0:00:07]} 34. Kf3 {[%emt 0:00:07]} Kf7 {[%emt 0:00:13]} 35. Ke2 {[%emt 0:00:20]} Bg5 {[%emt 0:00:17]} 36. b4 {[%emt 0:00:12]} Ke6 {[%emt 0:00:22]} 37. Bb3+ {[%emt 0:00:10]} Kd6 {[%emt 0:00:09]} 38. Bc4 {[%emt 0:00:06]} Bf6 {[%emt 0:00:13]} 39. Kd3 {[%emt 0:00:15]} a5 {[%emt 0:00:45]} 40. bxa5 {[%emt 0:00:02]} Kc5 {[%emt 0:00:06]} 41. a6 {[%emt 0:00:02]} Kb6 {[%emt 0:00:03]} 42. a4 {[%emt 0:00:01]} Be7 {[%emt 0:00:06]} 43. Bb5 {[%emt 0:00:18]} Bc5 {[%emt 0:00:04]} 44. Ke4 {[%emt 0:00:07]} Bg1 {[%emt 0:00:43]} 45. h3 {[%emt 0:00:11]} Bh2 {[%emt 0:00:38]} 46. g4 {[%emt 0:00:09]} Bg1 {[%emt 0:00:23]} 47. Kd5 {[%emt 0:00:14]} Bc5 {[%emt 0:00:36]} 48. a7 {[%emt 0:00:17]} 1-0

[Event "Kupreichik Memorial Open 2018"]
[Site "Minsk"]
[Date "2018.06.21"]
[Round "4"]
[White "Pashkov, Vladimir M"]
[Black "Stsepkina, Yauheniya"]
[Result "0-1"]
[ECO "D94"]
[WhiteElo "1812"]
[BlackElo "1591"]
[Annotator "NA"]
[PlyCount "102"]
[EventDate "2018.06.21"]
[EventCountry "BLR"]
[SourceTitle "playchess.com"]
[Source "ChessBase"]
[SourceQuality "1"]
[TimeControl "900+10"]

1. d4 {[%emt 0:00:00]} Nf6 {[%emt 0:00:01]} 2. Nf3 {[%emt 0:00:00]} g6 {[%emt 0:00:00]} 3. c4 {[%emt 0:00:00]} Bg7 {[%emt 0:00:01]} 4. Nc3 {[%emt 0:00:00]} d5 {[%emt 0:00:01]} 5. e3 {[%emt 0:00:04]} O-O {[%emt 0:00:02]} 6. Bd3 {[%emt 0:00:04]} b6 {[%emt 0:02:17]} 7. Ne5 {[%emt 0:00:37]} Bb7 {[%emt 0:00:02]} 8. O-O {[%emt 0:00:56]} Nbd7 {[%emt 0:00:27]} 9. f4 {[%emt 0:00:06]} Rc8 {[%emt 0:00:25]} 10. Bd2 {[%emt 0:00:50]} c5 {[%emt 0:00:22]} 11. Qe2 {[%emt 0:00:23]} Ne4 {[%emt 0:05:10]} 12. Bxe4 {[%emt 0:00:50]} dxe4 {[%emt 0:00:02]} 13. Nxd7 {[%emt 0:00:08]} Qxd7 {[%emt 0:00:02]} 14. d5 {[%emt 0:00:13]} f5 {[%emt 0:00:23]} 15. Rac1 {[%emt 0:00:49]} e6 {[%emt 0:00:19]} 16. Rfd1 {[%emt 0:01:32]} exd5 {[%emt 0:00:42]} 17. cxd5 {[%emt 0:00:13]} Qf7 {[%emt 0:01:51]} 18. Be1 {[%emt 0:01:34]} Rfd8 {[%emt 0:00:35]} 19. d6 {[%emt 0:00:21]} Rc6 {[%emt 0:00:23]} 20. b3 {[%emt 0:02:52]} Rcxd6 {[%emt 0:00:08]} 21. Rxd6 {[%emt 0:01:02]} Rxd6 {[%emt 0:00:02]} 22. Rd1 {[%emt 0:00:06]} Qd7 {[%emt 0:00:19]} 23. Rxd6 {[%emt 0:00:51]} Qxd6 {[%emt 0:00:03]} 24. Qc4+ {[%emt 0:00:07]} Kf8 {[%emt 0:02:12]} 25. Kf2 {[%emt 0:00:24]} a6 {[%emt 0:00:36]} 26. a4 {[%emt 0:00:32]} Qd3 {[%emt 0:00:33]} 27. Qxd3 {[%emt 0:02:45]} exd3 {[%emt 0:00:01]} 28. e4 {[%emt 0:00:32]} fxe4 {[%emt 0:00:06]} 29. Ke3 {[%emt 0:00:04]} Bd4+ {[%emt 0:00:06]} 30. Kd2 {[%emt 0:00:11]} Ke7 {[%emt 0:00:46]} 31. Nd1 {[%emt 0:00:10]} Bd5 {[%emt 0:00:17]} 32. Bf2 {[%emt 0:00:41]} Bxb3 {[%emt 0:00:12]} 33. Ne3 {[%emt 0:00:04]} Bxe3+ {[%emt 0:01:34]} 34. Kxe3 {[%emt 0:00:08]} Bxa4 {[%emt 0:00:10]} 35. Be1 {[%emt 0:00:12]} Bc6 {[%emt 0:00:05]} 36. g4 {[%emt 0:00:07]} Ke6 {[%emt 0:00:06]} 37. Bc3 {[%emt 0:00:09]} b5 {[%emt 0:00:08]} 38. Be5 {[%emt 0:00:17]} b4 {[%emt 0:00:10]} 39. Bb2 {[%emt 0:00:08]} a5 {[%emt 0:00:09]} 40. h4 {[%emt 0:00:03]} c4 {[%emt 0:00:16]} 41. h5 {[%emt 0:00:15]} c3 {[%emt 0:00:10]} 42. hxg6 {[%emt 0:00:16]} hxg6 {[%emt 0:00:01]} 43. Bc1 {[%emt 0:00:08]} b3 {[%emt 0:00:45]} 44. f5+ {[%emt 0:00:04]} gxf5 {[%emt 0:00:02]} 45. gxf5+ {[%emt 0:00:01]} Kxf5 {[%emt 0:00:05]} 46. Ba3 {[%emt 0:00:09]} b2 {[%emt 0:00:05]} 47. Bxb2 {[%emt 0:00:02]} cxb2 {[%emt 0:00:02]} 48. Kf2 {[%emt 0:00:02]} b1=Q {[%emt 0:00:10]} 49. Ke3 {[%emt 0:00:10]} Ke5 {[%emt 0:00:32]} 50. Kf2 {[%emt 0:00:05]} Kf4 {[%emt 0:00:08]} 51. Kg2 {[%emt 0:00:02]} e3+ {[%emt 0:00:12]} 0-1

[Event "Kupreichik Memorial Open 2018"]
[Site "Minsk"]
[Date "2018.06.21"]
[Round "4"]
[White "Mialik, Uladzislau"]
[Black "Terletsky, Oleg"]
[Result "0-1"]
[ECO "A05"]
[WhiteElo "1768"]
[BlackElo "2268"]
[Annotator "NA"]
[PlyCount "86"]
[EventDate "2018.06.21"]
[EventCountry "BLR"]
[SourceTitle "playchess.com"]
[Source "ChessBase"]
[SourceQuality "1"]
[TimeControl "900+10"]

1. Nf3 {[%emt 0:00:00]} Nf6 {[%emt 0:00:01]} 2. g3 {[%emt 0:00:00]} g6 {[%emt 0:00:01]} 3. Bg2 {[%emt 0:00:00]} Bg7 {[%emt 0:00:01]} 4. d4 {[%emt 0:00:00]} O-O {[%emt 0:00:03]} 5. O-O {[%emt 0:00:00]} d6 {[%emt 0:00:02]} 6. Re1 {[%emt 0:00:01]} Nbd7 {[%emt 0:00:08]} 7. e4 {[%emt 0:00:02]} e5 {[%emt 0:00:01]} 8. c3 {[%emt 0:00:00]} Re8 {[%emt 0:00:08]} 9. Nbd2 {[%emt 0:00:24]} c6 {[%emt 0:00:19]} 10. Qc2 {[%emt 0:00:47]} b5 {[%emt 0:00:09]} 11. a4 {[%emt 0:00:59]} Bb7 {[%emt 0:00:28]} 12. b3 {[%emt 0:00:47]} a6 {[%emt 0:00:19]} 13. Ba3 {[%emt 0:00:15]} c5 {[%emt 0:00:07]} 14. d5 {[%emt 0:01:15]} Rf8 {[%emt 0:01:43]} 15. Bb2 {[%emt 0:01:16]} Nh5 {[%emt 0:00:04]} 16. axb5 {[%emt 0:00:12]} axb5 {[%emt 0:00:02]} 17. Rxa8 {[%emt 0:00:01]} Bxa8 {[%emt 0:00:02]} 18. Ra1 {[%emt 0:00:17]} f5 {[%emt 0:00:19]} 19. Ra6 {[%emt 0:01:38]} Nb6 {[%emt 0:01:07]} 20. c4 {[%emt 0:00:40]} b4 {[%emt 0:00:36]} 21. Qb1 {[%emt 0:01:03]} Bb7 {[%emt 0:00:18]} 22. Ra7 {[%emt 0:00:10]} Qb8 {[%emt 0:00:12]} 23. Qa1 {[%emt 0:00:22]} Bh6 {[%emt 0:00:25]} 24. Ra5 {[%emt 0:00:46]} Qc7 {[%emt 0:00:41]} 25. Ra7 {[%emt 0:00:36]} Nc8 {[%emt 0:00:22]} 26. Ra5 {[%emt 0:00:13]} Ng7 {[%emt 0:05:55]} 27. Ra2 {[%emt 0:00:20]} Ne7 {[%emt 0:00:50]} 28. Qe1 {[%emt 0:00:59]} Bc8 {[%emt 0:01:36]} 29. Bc1 {[%emt 0:00:50]} Bxd2 {[%emt 0:00:38]} 30. Nxd2 {[%emt 0:02:27]} fxe4 {[%emt 0:00:02]} 31. Nxe4 {[%emt 0:00:02]} Nef5 {[%emt 0:00:02]} 32. f4 {[%emt 0:02:02]} exf4 {[%emt 0:00:28]} 33. Bxf4 {[%emt 0:00:03]} Nh5 {[%emt 0:00:01]} 34. Rf2 {[%emt 0:00:41]} Nxf4 {[%emt 0:00:59]} 35. Rxf4 {[%emt 0:00:01]} Qe7 {[%emt 0:01:41]} 36. Qf1 {[%emt 0:00:45]} h5 {[%emt 0:00:12]} 37. Rf2 {[%emt 0:00:50]} Qe5 {[%emt 0:00:36]} 38. Kh1 {[%emt 0:00:18]} Bd7 {[%emt 0:00:11]} 39. Rf4 {[%emt 0:00:08]} Ra8 {[%emt 0:00:08]} 40. Nf2 {[%emt 0:00:17]} Ne3 {[%emt 0:00:21]} 41. Qd3 {[%emt 0:00:11]} Ra1+ {[%emt 0:00:04]} 42. Nd1 {[%emt 0:00:11]} Rxd1+ {[%emt 0:00:04]} 43. Bf1 {[%emt 0:00:01]} Rxd3 {[%emt 0:00:02]} 0-1

[Event "Kupreichik Memorial Open 2018"]
[Site "Minsk"]
[Date "2018.06.21"]
[Round "4"]
[White "Arlou, Valery"]
[Black "Fedotov, Konstantin"]
[Result "0-1"]
[ECO "A46"]
[WhiteElo "1743"]
[BlackElo "2090"]
[Annotator "NA"]
[PlyCount "61"]
[EventDate "2018.06.21"]
[EventCountry "BLR"]
[SourceTitle "playchess.com"]
[Source "ChessBase"]
[SourceQuality "1"]
[TimeControl "900+10"]

1. d4 {[%emt 0:00:00]} Nf6 {[%emt 0:00:01]} 2. Nf3 {[%emt 0:00:04]} c5 {[%emt 0:00:03]} 3. e3 {[%emt 0:00:08]} e6 {[%emt 0:00:06]} 4. Be2 {[%emt 0:00:07]} b6 {[%emt 0:00:16]} 5. O-O {[%emt 0:00:24]} Bb7 {[%emt 0:00:01]} 6. c4 {[%emt 0:00:13]} d5 {[%emt 0:00:05]} 7. cxd5 {[%emt 0:00:09]} exd5 {[%emt 0:00:04]} 8. Bb5+ {[%emt 0:00:40]} Nbd7 {[%emt 0:00:05]} 9. Nc3 {[%emt 0:00:31]} a6 {[%emt 0:00:08]} 10. Bd3 {[%emt 0:01:18]} Be7 {[%emt 0:00:48]} 11. Ne5 {[%emt 0:01:32]} Nxe5 {[%emt 0:00:50]} 12. dxe5 {[%emt 0:00:02]} Ne4 {[%emt 0:00:07]} 13. Bxe4 {[%emt 0:00:45]} dxe4 {[%emt 0:00:04]} 14. Qg4 {[%emt 0:00:04]} Qc7 {[%emt 0:01:52]} 15. Qxg7 {[%emt 0:01:37]} O-O-O {[%emt 0:00:08]} 16. Qg4+ {[%emt 0:00:52]} Kb8 {[%emt 0:00:10]} 17. Qf4 {[%emt 0:00:45]} f5 {[%emt 0:02:08]} 18. exf6 {[%emt 0:00:27]} Bd6 {[%emt 0:02:00]} 19. Qh4 {[%emt 0:00:05]} Rde8 {[%emt 0:00:18]} 20. Bd2 {[%emt 0:00:20]} Be5 {[%emt 0:00:03]} 21. Rad1 {[%emt 0:02:11]} Rhf8 {[%emt 0:00:25]} 22. Bc1 {[%emt 0:00:42]} Bxf6 {[%emt 0:00:30]} 23. Qh6 {[%emt 0:00:46]} Qf7 {[%emt 0:03:29]} 24. Qf4+ {[%emt 0:00:55]} Ka7 {[%emt 0:00:37]} 25. Rd2 {[%emt 0:02:57]} Qg7 {[%emt 0:00:09]} 26. Qg3 {[%emt 0:00:58]} Qh6 {[%emt 0:02:15]} 27. Rd7 {[%emt 0:00:15]} Be5 {[%emt 0:00:38]} 28. Qh3 {[%emt 0:00:18]} Qc6 {[%emt 0:00:57]} 29. Rfd1 {[%emt 0:00:18]} Kb8 {[%emt 0:00:33]} 30. Qh4 {[%emt 0:00:25]} Bf6 {[%emt 0:00:38]} 31. Qg3+ {Rh8} 0-1

[Event "Kupreichik Memorial Open 2018"]
[Site "Minsk"]
[Date "2018.06.21"]
[Round "4"]
[White "Bezenson, Anton"]
[Black "Katashuk, Uladzislau"]
[Result "0-1"]
[ECO "A89"]
[WhiteElo "1732"]
[BlackElo "2149"]
[Annotator "NA"]
[PlyCount "58"]
[EventDate "2018.06.21"]
[EventCountry "BLR"]
[SourceTitle "playchess.com"]
[Source "ChessBase"]
[SourceQuality "1"]
[TimeControl "900+10"]

1. Nf3 {[%emt 0:00:00]} f5 {[%emt 0:00:02]} 2. d4 {[%emt 0:00:00]} g6 {[%emt 0:00:02]} 3. c4 {[%emt 0:00:00]} Bg7 {[%emt 0:00:01]} 4. Nc3 {[%emt 0:00:00]} d6 {[%emt 0:00:01]} 5. g3 {[%emt 0:00:19]} Nf6 {[%emt 0:00:03]} 6. Bg2 {[%emt 0:00:02]} O-O {[%emt 0:00:02]} 7. O-O {[%emt 0:00:08]} Nc6 {[%emt 0:00:01]} 8. Re1 {[%emt 0:01:11]} Ne4 {[%emt 0:00:02]} 9. Be3 {[%emt 0:00:52]} e5 {[%emt 0:00:02]} 10. dxe5 {[%emt 0:00:44]} Nxc3 {[%emt 0:00:02]} 11. bxc3 {[%emt 0:00:07]} dxe5 {[%emt 0:00:02]} 12. Qd5+ {[%emt 0:00:15]} Kh8 {[%emt 0:00:01]} 13. Rac1 {[%emt 0:01:21]} Qe8 {[%emt 0:01:38]} 14. Red1 {[%emt 0:00:46]} Be6 {[%emt 0:00:11]} 15. Qb5 {[%emt 0:00:02]} Rb8 {[%emt 0:00:01]} 16. Ng5 {[%emt 0:01:13]} e4 {[%emt 0:00:36]} 17. Bf4 {[%emt 0:02:04]} a6 {[%emt 0:01:08]} 18. Qa4 {[%emt 0:00:58]} Bd7 {[%emt 0:01:50]} 19. Qa3 {[%emt 0:01:34]} h6 {[%emt 0:01:06]} 20. Nh3 {[%emt 0:00:10]} Rc8 {[%emt 0:00:53]} 21. f3 {[%emt 0:03:10]} g5 {[%emt 0:00:23]} 22. Bd2 {[%emt 0:00:39]} e3 {[%emt 0:00:01]} 23. Be1 {[%emt 0:00:02]} Be6 {[%emt 0:00:22]} 24. c5 {[%emt 0:01:08]} f4 {[%emt 0:00:19]} 25. gxf4 {[%emt 0:00:21]} Qh5 {[%emt 0:00:05]} 26. c4 {[%emt 0:01:06]} Bxh3 {[%emt 0:01:00]} 27. Bxh3 {[%emt 0:00:39]} Qxh3 {[%emt 0:00:02]} 28. fxg5 {[%emt 0:00:03]} Be5 {[%emt 0:00:08]} 29. f4 {[%emt 0:00:42]} Bxf4 {[%emt 0:00:17]} 0-1

[Event "Kupreichik Memorial Open 2018"]
[Site "Minsk"]
[Date "2018.06.21"]
[Round "4"]
[White "Beliuga, Mikhail"]
[Black "Svjatocho, Andrej"]
[Result "0-1"]
[ECO "A04"]
[WhiteElo "1699"]
[BlackElo "1979"]
[Annotator "NA"]
[PlyCount "54"]
[EventDate "2018.06.21"]
[EventCountry "BLR"]
[SourceTitle "playchess.com"]
[Source "ChessBase"]
[SourceQuality "1"]
[TimeControl "900+10"]

1. Nf3 {[%emt 0:00:00]} f5 {[%emt 0:00:05]} 2. c4 {[%emt 0:00:04]} Nf6 {[%emt 0:00:03]} 3. d3 {[%emt 0:00:03]} d6 {[%emt 0:00:16]} 4. Nc3 {[%emt 0:00:09]} e5 {[%emt 0:00:05]} 5. e4 {[%emt 0:00:26]} Nc6 {[%emt 0:00:08]} 6. Bg5 {[%emt 0:00:12]} Be7 {[%emt 0:01:32]} 7. g3 {[%emt 0:03:37]} O-O {[%emt 0:00:17]} 8. Bg2 {[%emt 0:00:19]} h6 {[%emt 0:00:26]} 9. Bxf6 {[%emt 0:00:33]} Bxf6 {[%emt 0:00:03]} 10. O-O {[%emt 0:01:02]} g5 {[%emt 0:00:15]} 11. Nd5 {[%emt 0:00:29]} Bg7 {[%emt 0:00:02]} 12. h4 {[%emt 0:00:40]} f4 {[%emt 0:01:50]} 13. hxg5 {[%emt 0:01:01]} hxg5 {[%emt 0:00:02]} 14. Nh2 {[%emt 0:00:05]} Nd4 {[%emt 0:00:35]} 15. Qh5 {[%emt 0:01:57]} c6 {[%emt 0:00:19]} 16. Nc3 {[%emt 0:00:13]} Be6 {[%emt 0:01:39]} 17. Ng4 {[%emt 0:03:21]} Bxg4 {[%emt 0:03:24]} 18. Qxg4 {[%emt 0:00:04]} Qf6 {[%emt 0:00:15]} 19. Qh5 {[%emt 0:01:05]} Qh6 {[%emt 0:01:05]} 20. Qg4 {[%emt 0:02:35]} Rf7 {[%emt 0:01:30]} 21. Bh3 {[%emt 0:00:19]} Bf6 {[%emt 0:00:40]} 22. Kg2 {[%emt 0:00:14]} f3+ {[%emt 0:00:22]} 23. Kh2 {[%emt 0:00:01]} Rh7 24. Rh1 Kf7 {[%emt 0:00:19]} 25. Qd7+ {[%emt 0:00:20]} Kg6 {[%emt 0:00:34]} 26. Qg4 {[%emt 0:00:12]} Rah8 {[%emt 0:00:07]} 27. Kg1 Qxh3 {[%emt 0:00:20]} 0-1

[Event "Kupreichik Memorial Open 2018"]
[Site "Minsk"]
[Date "2018.06.21"]
[Round "4"]
[White "Yurau, Maksim"]
[Black "Romanovskij, Nikita"]
[Result "1/2-1/2"]
[ECO "B01"]
[WhiteElo "1694"]
[BlackElo "1990"]
[Annotator "NA"]
[PlyCount "45"]
[EventDate "2018.06.21"]
[EventCountry "BLR"]
[SourceTitle "playchess.com"]
[Source "ChessBase"]
[SourceQuality "1"]
[TimeControl "900+10"]

1. e4 {[%emt 0:00:00]} d5 {[%emt 0:00:01]} 2. exd5 {[%emt 0:00:02]} Qxd5 {[%emt 0:00:01]} 3. Nc3 {[%emt 0:00:02]} Qd6 {[%emt 0:00:03]} 4. Nf3 {[%emt 0:00:05]} Nf6 {[%emt 0:00:01]} 5. d4 {[%emt 0:00:28]} c6 {[%emt 0:00:05]} 6. h3 {[%emt 0:01:06]} Bf5 {[%emt 0:00:10]} 7. Bd3 {[%emt 0:00:27]} Bxd3 {[%emt 0:00:07]} 8. Qxd3 {[%emt 0:00:02]} e6 {[%emt 0:00:01]} 9. Bg5 {[%emt 0:00:11]} Nbd7 {[%emt 0:00:12]} 10. O-O {[%emt 0:00:20]} Be7 {[%emt 0:00:03]} 11. Ne4 {[%emt 0:01:40]} Nxe4 {[%emt 0:00:05]} 12. Bxe7 {[%emt 0:00:03]} Qxe7 {[%emt 0:00:05]} 13. Qxe4 {[%emt 0:00:03]} O-O {[%emt 0:00:02]} 14. c4 {[%emt 0:00:14]} Nf6 {[%emt 0:00:04]} 15. Qe2 {[%emt 0:00:06]} Rfd8 {[%emt 0:00:12]} 16. Rfd1 {[%emt 0:00:11]} Qc7 {[%emt 0:00:09]} 17. Qe5 {[%emt 0:02:56]} Qb6 {[%emt 0:00:39]} 18. Rd2 {[%emt 0:00:47]} Qb4 {[%emt 0:01:06]} 19. Qe2 {[%emt 0:00:23]} c5 {[%emt 0:00:13]} 20. Rad1 {[%emt 0:01:37]} cxd4 {[%emt 0:00:34]} 21. Rxd4 {[%emt 0:00:06]} Rxd4 {[%emt 0:00:04]} 22. Rxd4 {[%emt 0:00:05]} Qb6 {[%emt 0:00:43]} 23. Qe5 {[%emt 0:02:48]} 1/2-1/2

[Event "Kupreichik Memorial Open 2018"]
[Site "Minsk"]
[Date "2018.06.21"]
[Round "4"]
[White "Selitski, Aleksandr"]
[Black "Kalugin, Sergey G"]
[Result "0-1"]
[ECO "E73"]
[WhiteElo "1678"]
[BlackElo "2334"]
[Annotator "NA"]
[PlyCount "56"]
[EventDate "2018.06.21"]
[EventCountry "BLR"]
[SourceTitle "playchess.com"]
[Source "ChessBase"]
[SourceQuality "1"]
[TimeControl "900+10"]

1. d4 {[%emt 0:00:00]} Nf6 {[%emt 0:00:01]} 2. c4 {[%emt 0:00:00]} g6 {[%emt 0:00:19]} 3. Nc3 {[%emt 0:00:00]} Bg7 {[%emt 0:00:01]} 4. e4 {[%emt 0:00:06]} d6 {[%emt 0:00:01]} 5. Be2 {[%emt 0:00:07]} O-O {[%emt 0:00:02]} 6. Bg5 {[%emt 0:00:06]} Na6 {[%emt 0:00:02]} 7. g4 {[%emt 0:00:42]} Qe8 {[%emt 0:01:11]} 8. h4 {[%emt 0:00:36]} c5 {[%emt 0:00:40]} 9. d5 {[%emt 0:00:11]} e6 {[%emt 0:00:09]} 10. f3 {[%emt 0:00:44]} exd5 {[%emt 0:00:08]} 11. cxd5 {[%emt 0:00:28]} c4 {[%emt 0:03:09]} 12. Nh3 {[%emt 0:02:25]} Nc5 {[%emt 0:00:43]} 13. O-O {[%emt 0:01:02]} b5 {[%emt 0:00:42]} 14. Qd2 {[%emt 0:01:59]} b4 {[%emt 0:03:22]} 15. Nd1 {[%emt 0:00:04]} Nfxe4 {[%emt 0:01:26]} 16. fxe4 {[%emt 0:00:29]} Nxe4 {[%emt 0:00:03]} 17. Qe1 {[%emt 0:01:58]} c3 {[%emt 0:01:21]} 18. bxc3 {[%emt 0:02:20]} bxc3 {[%emt 0:00:02]} 19. Rc1 {[%emt 0:00:31]} Qa4 {[%emt 0:00:36]} 20. Bf3 {[%emt 0:01:08]} Nxg5 {[%emt 0:00:18]} 21. Nxg5 {[%emt 0:00:18]} c2 {[%emt 0:01:30]} 22. Nf2 {[%emt 0:01:24]} Ba6 {[%emt 0:00:02]} 23. Nfe4 {[%emt 0:00:53]} Bxf1 {[%emt 0:00:13]} 24. Qxf1 {[%emt 0:00:11]} h6 {[%emt 0:00:07]} 25. Nh3 {[%emt 0:00:29]} Bb2 {[%emt 0:00:05]} 26. Nxd6 {[%emt 0:00:13]} Rab8 {[%emt 0:01:29]} 27. Be4 {[%emt 0:00:28]} Bxc1 {[%emt 0:00:09]} 28. Qf6 {[%emt 0:00:32]} Bb2 {[%emt 0:00:05]} 0-1